lending/lending_fUSD_20251125
["ID","MTS","AMOUNT","RATE_DAILY","PERIOD"]
[394908573,1764109840796,-150.0,0.00038356,8]
[394908575,1764109840805,-231.12644847,0.00038356,8]
[394908577,1764109840814,-150.0,0.00038356,2]
[394908579,1764109840823,-150.0,0.00038356,8]
[394908581,1764109840832,-150.0,0.00038356,8]
[394908583,1764109840841,-150.0,0.00038356,8]
[394908585,1764109840851,-500.0,0.00038356,8]
[394908587,1764109840865,-154.96938483,0.00038356,8]
[394908589,1764109840874,-150.0,0.00038356,8]
[394908591,1764109840883,-150.0,0.00038356,2]
[394908592,1764109840892,-150.0,0.00038356,8]
[394908595,1764109840902,-150.0,0.00038356,8]
[394908596,1764109840912,-150.0,0.00038356,2]
[394908598,1764109840921,-150.0,0.00038356,8]
[394908601,1764109840933,-150.0,0.00038356,2]
[394908603,1764109840943,-150.0,0.00038356,8]
[394908605,1764109840952,-150.0,0.00038356,8]
[394908607,1764109840962,-150.0,0.00038356,8]
[394908608,1764109840971,-150.0,0.00038356,8]
[394908610,1764109840980,-150.0,0.00038356,8]
[394908613,1764109840990,-150.35210228,0.00038356,8]
[394908615,1764109841000,-150.0,0.00038356,8]
[394908617,1764109841010,-150.0,0.00038356,8]
[394908619,1764109841019,-150.24838742,0.00038356,8]
[394908620,1764109841029,-150.0,0.00038356,8]
[394908622,1764109841038,-150.0,0.00038356,8]
[394908625,1764109841047,-154.98785149,0.00038356,8]
[394908627,1764109841059,-150.0,0.00038356,8]
[394908629,1764109841069,-154.67900617,0.00038356,8]
[394908631,1764109841078,-262.83970619,0.00038356,2]
[394908633,1764109841087,-150.0,0.00038356,5]
[394908635,1764109841096,-150.0,0.00038493,8]
[394908637,1764109841105,-150.0,0.00038493,2]
[394908639,1764109841116,-150.0,0.00038493,8]
[394908641,1764109841128,-150.0,0.00038493,8]
[394908643,1764109841137,-500.0,0.00038493,8]
[394908645,1764109841147,-150.0,0.00038493,8]
[394908647,1764109841156,-150.0,0.00038493,8]
[394908649,1764109841165,-150.0,0.00038493,8]
[394908651,1764109841174,-150.0,0.00038493,8]
[394908653,1764109841184,-150.0,0.00038493,8]
[394908655,1764109841194,-150.0,0.00038493,8]
[394908657,1764109841203,-150.0,0.00038493,8]
[394908659,1764109841213,-150.0,0.00038493,8]
[394908661,1764109841222,-150.0,0.00038493,8]
[394908663,1764109841231,-216.03,0.00038574,2]
[394908665,1764109841240,-1239.66504217,0.00038599,2]
[394908667,1764109841249,-1000.0,0.00038629,7]
[394908669,1764109841258,-200.0,0.0003863,8]
[394908671,1764109841267,-200.0,0.0003863,2]
[394908673,1764109841276,-200.0,0.0003863,8]
[394908675,1764109841285,-200.0,0.0003863,8]
[394908677,1764109841294,-500.0,0.0003863,8]
[394908679,1764109841304,-200.0,0.0003863,8]
[394908681,1764109841313,-200.0,0.0003863,8]
[394908683,1764109841322,-200.0,0.0003863,8]
[394908685,1764109841331,-200.0,0.0003863,8]
[394908687,1764109841340,-200.0,0.0003863,8]
[394908688,1764109841349,-200.0,0.0003863,8]
[394908691,1764109841358,-200.0,0.0003863,8]
[394908692,1764109841368,-200.0,0.0003863,8]
[394908695,1764109841379,-200.0,0.0003863,8]
[394908696,1764109841388,-376.07861867,0.0003863,8]
[394908698,1764109841397,-594.9,0.00038678,2]
[394908701,1764109841407,-506.29642956,0.00038717,2]
[394908703,1764109841416,-500.0,0.00038717,5]
[394908705,1764109841425,-500.0,0.00038717,5]
[394908706,1764109841435,-500.0,0.00038717,5]
[394908709,1764109841444,-500.0,0.00038717,5]
[394908711,1764109841457,-500.0,0.00038717,5]
[394908713,1764109841466,-161.34977893,0.00038717,5]
[394908715,1764109841475,-500.0,0.00038717,5]
[394908717,1764109841484,-519.0,0.00038767,8]
[394908719,1764109841493,-479.24,0.00038837,2]
[394908721,1764109841503,-1212.01,0.00038837,2]
[394908723,1764109841512,-1000.0,0.00038856,7]
[394908725,1764109841521,-1000.0,0.00038999,7]
[394908727,1764109841530,-1000.0,0.00038999,5]
[394908729,1764109841539,-1000.0,0.00038999,7]
[394908731,1764109841548,-500.0,0.00038999,15]
[394908733,1764109841557,-500.0,0.00038999,15]
[394908735,1764109841566,-454.16364255,0.00038999,15]
[394908737,1764109841575,-6013.0,0.00039,85]
[394908739,1764109841584,-151.0,0.00039003,14]
[394908741,1764109841592,-1239.66504217,0.00039004,2]
[394908743,1764109841602,-40000.0,0.00039006,2]
[394908745,1764109841611,-1000.0,0.00039047,7]
[394908747,1764109841620,-1000.0,0.00039078,120]
[394908749,1764109841630,-1000.0,0.00039099,7]
[394908751,1764109841638,-500.0,0.00039176,8]
[394908753,1764109841647,-588.6,0.00039177,8]
[394908755,1764109841656,-570.53683778,0.00039177,8]
[394908757,1764109841666,-500.0,0.00039177,2]
[394908759,1764109841675,-1454.26,0.00039177,8]
[394908761,1764109841685,-1363.48,0.00039177,8]
[394908763,1764109841694,-300.0,0.00039177,2]
[394908765,1764109841704,-500.0,0.00039177,8]
[394908767,1764109841714,-763.45,0.00039177,2]
[394908769,1764109841723,-504.55585005,0.00039177,8]
[394908771,1764109841733,-629.59,0.00039177,8]
[394908773,1764109841743,-300.0,0.00039177,2]
[394908775,1764109841752,-1000.0,0.00039177,7]
[394908777,1764109841762,-7850.89,0.00039177,8]
[394908779,1764109841771,-500.0,0.00039177,8]
[394908781,1764109841780,-500.0,0.00039265,5]
[394908783,1764109841788,-502.43033754,0.00039265,5]
[394908785,1764109841797,-1000.0,0.00039287,4]
[394908787,1764109841807,-152.0,0.00039288,3]
[394908789,1764109841816,-500.0,0.00039348,2]
[394908791,1764109841825,-517.73345467,0.00039348,8]
[394908793,1764109841836,-15113.4846171,0.00039349,2]
[394908795,1764109841846,-1239.66504217,0.00039409,2]
[394908797,1764109841861,-203.52,0.0003945,8]
[394908799,1764109841872,-588.6,0.00039451,8]
[394908801,1764109841881,-1454.26,0.00039451,8]
[394908803,1764109841890,-1363.48,0.00039451,8]
[394908805,1764109841899,-300.0,0.00039451,2]
[394908807,1764109841910,-500.0,0.00039451,8]
[394908809,1764109841919,-763.45,0.00039451,2]
[394908811,1764109841928,-8713.23,0.00039451,8]
[394908813,1764109841937,-500.0,0.00039451,2]
[394908815,1764109841947,-500.0,0.00039451,8]
[394908817,1764109841955,-629.59,0.00039451,8]
[394908819,1764109841964,-300.0,0.00039451,2]
[394908821,1764109841974,-1000.0,0.00039451,7]
[394908823,1764109841983,-7850.89,0.00039451,8]
[394908825,1764109841992,-500.0,0.00039451,8]
[394908827,1764109842000,-517.53628384,0.00039451,8]
[394908829,1764109842009,-151.03336104,0.0003946,15]
[394908831,1764109842018,-300.260613,0.00039476,95]
[394908833,1764109842028,-1000.0,0.00039477,2]
[394908835,1764109842038,-500.0,0.00039478,7]
[394908837,1764109842047,-439.05175,0.00039478,2]
[394908839,1764109842056,-154.30584657,0.00039478,2]
[394908841,1764109842066,-1000.0,0.00039489,7]
[394908843,1764109842075,-9743.43956003,0.0003949,120]
[394908845,1764109842084,-20000.0,0.000395,120]
[394908847,1764109842093,-403.09549329,0.000395,60]
[394908849,1764109842102,-10000.0,0.000395,10]
[394908851,1764109842111,-10056.80417147,0.000395,4]
[394908853,1764109842121,-151.0,0.00039507,14]
[394908855,1764109842130,-690.86,0.00039509,8]
[394908857,1764109842143,-199.0,0.00039509,7]
[394908859,1764109842152,-845.17,0.00039509,8]
[394908861,1764109842161,-1347.19,0.00039509,8]
[394908863,1764109842170,-617.34,0.00039509,2]
[394908865,1764109842180,-500.0,0.00039509,8]
[394908867,1764109842191,-500.0,0.00039509,8]
[394908869,1764109842200,-1112.79,0.00039509,8]
[394908871,1764109842209,-186.92521666,0.00039509,8]
[394908873,1764109842219,-500.0,0.00039509,2]
[394908875,1764109842228,-500.0,0.00039509,8]
[394908877,1764109842237,-500.0,0.00039509,8]
[394908879,1764109842246,-891.76,0.00039509,8]
[394908881,1764109842256,-20000.0,0.0003951,120]
[394908883,1764109842265,-30000.0,0.0003953,120]
[394908885,1764109842273,-647.08685731,0.00039539,8]
[394908887,1764109842282,-30000.0,0.0003954,120]
[394908888,1764109842291,-30000.0,0.0003955,120]
[394908890,1764109842301,-30000.0,0.0003956,120]
[394908892,1764109842311,-500.0,0.00039569,2]
[394908895,1764109842321,-30000.0,0.0003957,120]
[394908897,1764109842330,-30000.0,0.0003958,120]
[394908898,1764109842339,-443.18472937,0.0003958,60]
[394908900,1764109842349,-30000.0,0.0003959,120]
[394908903,1764109842358,-30000.0,0.000396,120]
[394908905,1764109842370,-1000.0,0.000396,120]
[394908907,1764109842380,-1000.0,0.000396,120]
[394908909,1764109842389,-1000.0,0.000396,120]
[394908911,1764109842399,-1000.0,0.000396,120]
[394908913,1764109842408,-1003.57,0.000396,120]
[394908915,1764109842418,-150.0,0.000396,60]
[394908917,1764109842427,-150.0,0.000396,60]
[394908919,1764109842438,-150.0,0.000396,60]
[394908921,1764109842447,-500.0,0.00039622,2]
[394908923,1764109842457,-439.98,0.00039654,2]
[394908925,1764109842466,-1209.17,0.00039659,2]
[394908927,1764109842475,-151.0,0.00039659,30]
[394908929,1764109842484,-417.6,0.00039659,2]
[394908931,1764109842493,-417.6,0.00039659,2]
[394908933,1764109842502,-1212.01,0.00039659,2]
[394908935,1764109842512,-1212.01,0.00039659,2]
[394908937,1764109842522,-417.6,0.00039659,2]
[394908939,1764109842531,-1212.01,0.00039659,2]
[394908941,1764109842540,-417.6,0.00039659,2]
[394908943,1764109842550,-417.6,0.00039659,2]
[394908945,1764109842559,-150.0,0.00039659,2]
[394908947,1764109842568,-150.0,0.00039659,2]
[394908949,1764109842577,-150.0,0.00039659,2]
[394908951,1764109842587,-150.0,0.00039659,2]
[394908953,1764109842596,-150.0,0.00039659,2]
[394908956,1764109842615,-819.11947874,0.000397,2]
[394908958,1764109842625,-151.0,0.00039717,120]
[394908960,1764109842635,-151.0,0.00039717,120]
[394908962,1764109842644,-151.0,0.00039717,120]
[394908964,1764109842654,-151.0,0.00039717,120]
[394908967,1764109842662,-151.0,0.00039717,120]
[394908969,1764109842672,-168.880202,0.00039717,90]
[394908972,1764109842683,-155.471458,0.00039717,120]
[394908974,1764109842693,-151.0,0.00039717,120]
[394908976,1764109842702,-178.774203,0.00039717,120]
[394908978,1764109842711,-151.0,0.00039717,120]
[394908980,1764109842720,-300.0,0.00039717,120]
[394908982,1764109842730,-152.491648,0.00039717,120]
[394908984,1764109842739,-158.061369,0.00039717,120]
[394908986,1764109842749,-151.0,0.00039717,120]
[394908988,1764109842759,-153.067603,0.00039717,120]
[394908990,1764109842768,-156.752064,0.00039717,120]
[394908992,1764109842778,-151.0,0.00039717,120]
[394908994,1764109842787,-151.0,0.00039717,120]
[394908996,1764109842797,-151.0,0.00039717,120]
[394908998,1764109842806,-151.0,0.00039717,120]
[394909000,1764109842815,-151.867121,0.00039717,120]
[394909002,1764109842826,-313.00904,0.00039717,15]
[394909004,1764109842836,-313.00904,0.00039717,15]
[394909006,1764109842845,-313.00904,0.00039717,15]
[394909008,1764109842857,-313.00904,0.00039717,15]
[394909010,1764109842867,-151.0,0.00039717,60]
[394909012,1764109842876,-172.829157,0.00039717,120]
[394909014,1764109842886,-25000.0,0.00039717,15]
[394909016,1764109842897,-25000.0,0.00039717,15]
[394909018,1764109842907,-588.6,0.00039725,8]
[394909020,1764109842916,-1454.26,0.00039725,8]
[394909022,1764109842927,-1363.48,0.00039725,8]
[394909024,1764109842940,-500.0,0.00039725,8]
[394909027,1764109842950,-763.45,0.00039725,2]
[394909029,1764109842959,-8713.23,0.00039725,8]
[394909031,1764109842969,-500.0,0.00039725,8]
[394909033,1764109842979,-629.59,0.00039725,8]
[394909035,1764109842988,-300.0,0.00039725,2]
[394909037,1764109842997,-7850.89,0.00039725,8]
[394909039,1764109843007,-329.72687558,0.00039725,8]
[394909041,1764109843016,-25000.0,0.00039726,15]
[394909043,1764109843025,-200.609981,0.00039726,120]
[394909045,1764109843034,-155.039078,0.00039726,120]
[394909047,1764109843043,-151.0,0.00039726,120]
[394909049,1764109843053,-151.0,0.00039726,120]
[394909051,1764109843063,-151.0,0.00039726,120]
[394909053,1764109843073,-25000.0,0.00039726,15]
[394909055,1764109843092,-151.0,0.00039726,120]
[394909057,1764109843101,-151.0,0.00039726,120]
[394909059,1764109843110,-151.0,0.00039726,120]
[394909061,1764109843121,-151.0,0.00039726,120]
[394909063,1764109843131,-298.725307,0.00039726,120]
[394909065,1764109843140,-154.806142,0.00039726,120]
[394909067,1764109843150,-151.0,0.00039726,120]
[394909069,1764109843160,-151.0,0.00039726,120]
[394909071,1764109843169,-151.0,0.00039726,7]
[394909073,1764109843179,-156.445564,0.00039726,7]
[394909075,1764109843189,-151.0,0.00039726,120]
[394909077,1764109843198,-150.0,0.00039726,8]
[394909079,1764109843209,-154.686387,0.00039726,120]
[394909081,1764109843218,-194.1828156,0.00039726,15]
[394909083,1764109843228,-250.0,0.00039726,5]
[394909085,1764109843238,-500.0,0.00039782,2]
[394909087,1764109843246,-1516.0,0.00039783,5]
[394909088,1764109843255,-690.86,0.00039783,8]
[394909089,1764109843265,-845.17,0.00039783,8]
[394909090,1764109843273,-1347.19,0.00039783,8]
[394909091,1764109843282,-617.34,0.00039783,2]
[394909092,1764109843291,-500.0,0.00039783,8]
[394909093,1764109843300,-500.0,0.00039783,8]
[394909094,1764109843309,-1112.79,0.00039783,8]
[394909095,1764109843318,-293.8610922,0.00039783,2]
[394909096,1764109843327,-500.0,0.00039783,8]
[394909097,1764109843336,-500.0,0.00039783,8]
[394909098,1764109843344,-891.76,0.00039783,8]
[394909099,1764109843353,-150.54,0.0003979,2]
[394909100,1764109843362,-150.54,0.0003979,2]
[394909101,1764109843372,-150.54,0.0003979,2]
[394909102,1764109843380,-150.54,0.0003979,2]
[394909103,1764109843390,-150.54,0.0003979,2]
[394909104,1764109843399,-529.14204968,0.0003979,2]
[394909105,1764109843408,-500.0,0.00039799,120]
[394909107,1764109843417,-500.0,0.00039799,2]
[394909109,1764109843426,-500.0,0.00039799,2]
[394909111,1764109843437,-500.0,0.00039799,2]
[394909114,1764109843447,-500.0,0.00039799,2]
[394909116,1764109843456,-493.7561,0.000398,2]
[394909118,1764109843466,-2000.0,0.000398,3]
[394909120,1764109843476,-1007981.13627912,0.000398,2]
[394909122,1764109843485,-312.1432,0.000398,3]
[394909124,1764109843495,-4465.60698302,0.000398,2]
[394909126,1764109843504,-2000.0,0.000398,3]
[394909128,1764109843513,-301.52,0.000398,14]
[394909130,1764109843522,-152.826328,0.000398,120]
[394909132,1764109843531,-151.0,0.000398,120]
[394909134,1764109843541,-151.0,0.000398,120]
[394909136,1764109843550,-151.0,0.000398,120]
[394909138,1764109843559,-193.063553,0.000398,120]
[394909140,1764109843569,-152.793394,0.000398,120]
[394909142,1764109843578,-151.0,0.000398,120]
[394909144,1764109843588,-151.0,0.000398,120]
[394909146,1764109843597,-151.0,0.000398,120]
[394909148,1764109843606,-151.0,0.000398,120]
[394909150,1764109843615,-151.0,0.000398,120]
[394909152,1764109843624,-151.0,0.000398,120]
[394909154,1764109843634,-152.807998,0.000398,120]
[394909156,1764109843643,-189.330784,0.000398,120]
[394909158,1764109843652,-153.039392,0.000398,120]
[394909160,1764109843662,-151.0,0.000398,120]
[394909162,1764109843671,-151.0,0.000398,7]
[394909164,1764109843682,-160.453345,0.000398,120]
[394909166,1764109843691,-151.0,0.000398,120]
[394909168,1764109843700,-156.746096,0.000398,120]
[394909170,1764109843709,-151.0,0.000398,120]
[394909172,1764109843719,-155.740131,0.000398,120]
[394909174,1764109843728,-313.00904,0.000398,15]
[394909176,1764109843738,-313.00904,0.000398,15]
[394909178,1764109843747,-313.00904,0.000398,15]
[394909180,1764109843756,-313.00904,0.000398,15]
[394909182,1764109843766,-1239.66504217,0.00039814,15]
[394909184,1764109843775,-150.0,0.00039863,8]
[394909186,1764109843784,-216.03,0.00039875,2]
[394909188,1764109843794,-200.0,0.00039888,2]
[394909190,1764109843805,-200.0,0.00039888,2]
[394909192,1764109843814,-200.0,0.00039888,2]
[394909194,1764109843823,-200.0,0.00039888,2]
[394909196,1764109843833,-200.0,0.00039888,2]
[394909198,1764109843842,-200.0,0.00039888,2]
[394909200,1764109843854,-200.0,0.00039888,2]
[394909202,1764109843864,-200.0,0.00039888,2]
[394909204,1764109843873,-200.0,0.00039888,2]
[394909206,1764109843883,-200.0,0.00039888,2]
[394909208,1764109843892,-200.0,0.00039888,2]
[394909210,1764109843903,-200.0,0.00039888,2]
[394909211,1764109843912,-200.0,0.00039888,2]
[394909213,1764109843921,-200.0,0.00039888,2]
[394909216,1764109843933,-200.0,0.00039888,2]
[394909235,1764109844119,-200.0,0.00039888,2]
[394909237,1764109844129,-200.0,0.00039888,2]
[394909239,1764109844138,-200.0,0.00039888,2]
[394909241,1764109844148,-200.0,0.00039888,2]
[394909243,1764109844157,-200.0,0.00039888,2]
[394909245,1764109844166,-200.0,0.00039888,2]
[394909247,1764109844175,-200.0,0.00039888,2]
[394909249,1764109844186,-200.0,0.00039888,2]
[394909250,1764109844196,-200.0,0.00039888,2]
[394909252,1764109844205,-200.0,0.00039888,2]
[394909254,1764109844214,-200.0,0.00039888,2]
[394909257,1764109844224,-200.0,0.00039888,2]
[394909258,1764109844234,-200.0,0.00039888,2]
[394909261,1764109844243,-200.0,0.00039888,2]
[394909262,1764109844253,-200.0,0.00039888,2]
[394909264,1764109844263,-200.0,0.00039888,2]
[394909266,1764109844272,-200.0,0.00039888,2]
[394909268,1764109844281,-200.0,0.00039888,2]
[394909270,1764109844290,-200.0,0.00039888,2]
[394909272,1764109844299,-200.0,0.00039888,2]
[394909274,1764109844309,-318.0,0.00039888,2]
[394909276,1764109844319,-253.0,0.0003989,20]
[394909278,1764109844328,-500.0,0.00039896,2]
[394909281,1764109844338,-150.54,0.0003997,2]
[394909282,1764109844347,-80073.17076549,0.0003998,2]
[394909285,1764109844359,-150.54,0.0003999,2]
[394909287,1764109844368,-2000.0,0.00039997,8]
[394909288,1764109844377,-339.42001744,0.00039998,30]
[394909291,1764109844391,-588.6,0.00039999,8]
[394909292,1764109844400,-1454.26,0.00039999,8]
[394909294,1764109844409,-1363.48,0.00039999,8]
[394909297,1764109844419,-500.0,0.00039999,8]
[394909299,1764109844429,-763.45,0.00039999,2]
[394909300,1764109844438,-239.84119403,0.00039999,30]
[394909303,1764109844450,-8713.23,0.00039999,8]
[394909305,1764109844462,-500.0,0.00039999,2]
[394909306,1764109844471,-500.0,0.00039999,8]
[394909309,1764109844481,-629.59,0.00039999,8]
[394909311,1764109844491,-300.0,0.00039999,2]
[394909312,1764109844500,-7850.89,0.00039999,8]
[394909314,1764109844509,-258.08450288,0.00039999,31]
[394909317,1764109844519,-448.13033012,0.00039999,31]
[394909319,1764109844528,-500.0,0.00039999,31]
[394909321,1764109844537,-500.0,0.00039999,31]
[394909323,1764109844547,-500.0,0.00039999,31]
[394909325,1764109844556,-500.0,0.00039999,31]
[394909327,1764109844566,-192.87893724,0.00039999,31]
[394909329,1764109844575,-50000.0,0.0004,40]
[394909331,1764109844584,-169.8367091,0.0004,8]
[394909333,1764109844594,-4689.58705155,0.0004,7]
[394909335,1764109844604,-250.0,0.0004,7]
[394909337,1764109844614,-300.59069158,0.0004,30]
[394909339,1764109844624,-1016.46618598,0.0004,30]
[394909341,1764109844634,-1000.0,0.0004,120]
[394909342,1764109844645,-1000.0,0.0004,120]
[394909344,1764109844655,-1000.0,0.0004,120]
[394909347,1764109844665,-432.25389207,0.0004,120]
[394909349,1764109844675,-30000.0,0.0004,60]
[394909351,1764109844688,-30000.0,0.0004,60]
[394909353,1764109844698,-40160.50969664,0.0004,60]
[394909355,1764109844708,-2010.96,0.0004,60]
[394909357,1764109844717,-1000.0,0.0004,30]
[394909359,1764109844727,-150.0,0.0004,30]
[394909361,1764109844736,-1000.0,0.0004,30]
[394909363,1764109844746,-1000.0,0.0004,30]
[394909365,1764109844755,-1000.0,0.0004,30]
[394909367,1764109844764,-789.7631529,0.0004,30]
[394909369,1764109844773,-3069.29486484,0.0004,30]
[394909371,1764109844782,-385.91595087,0.0004,2]
[394909373,1764109844791,-216.28790286,0.0004,2]
[394909375,1764109844802,-311.21968656,0.0004,2]
[394909377,1764109844811,-24297.54833413,0.0004,15]
[394909379,1764109844820,-189.9,0.0004,120]
[394909381,1764109844829,-627.59,0.0004,120]
[394909383,1764109844839,-214.65,0.0004,120]
[394909385,1764109844848,-153.752937,0.0004,120]
[394909387,1764109844859,-151.0,0.0004,120]
[394909389,1764109844872,-151.0,0.0004,120]
[394909391,1764109844881,-184.407735,0.0004,120]
[394909393,1764109844890,-567.0,0.0004,14]
[394909395,1764109844899,-283.020499,0.0004,120]
[394909397,1764109844910,-151.0,0.0004,120]
[394909399,1764109844919,-151.0,0.0004,7]
[394909401,1764109844928,-151.0,0.0004,120]
[394909403,1764109844941,-313.00904,0.0004,15]
[394909405,1764109844949,-313.00904,0.0004,15]
[394909407,1764109844959,-313.00904,0.0004,15]
[394909409,1764109844968,-313.00904,0.0004,15]
[394909411,1764109844977,-819.11947874,0.00040057,2]
[394909413,1764109844986,-690.86,0.00040057,8]
[394909415,1764109844995,-199.0,0.00040057,8]
[394909417,1764109845004,-845.17,0.00040057,8]
[394909419,1764109845013,-1347.19,0.00040057,8]
[394909421,1764109845022,-617.34,0.00040057,2]
[394909423,1764109845032,-500.0,0.00040057,8]
[394909425,1764109845041,-500.0,0.00040057,8]
[394909427,1764109845050,-1112.79,0.00040057,8]
[394909429,1764109845061,-500.0,0.00040057,8]
[394909431,1764109845070,-500.0,0.00040057,8]
[394909433,1764109845080,-891.76,0.00040057,8]
[394909435,1764109845089,-500.0,0.0004017,2]
[394909437,1764109845099,-1239.66504217,0.00040219,15]
[394909440,1764109845108,-98065.31698785,0.00040272,21]
[394909442,1764109845118,-588.6,0.00040273,8]
[394909444,1764109845127,-1454.26,0.00040273,8]
[394909445,1764109845135,-1363.48,0.00040273,8]
[394909448,1764109845145,-476.13284127,0.00040273,8]
[394909450,1764109845155,-763.45,0.00040273,2]
[394909451,1764109845165,-8713.23,0.00040273,8]
[394909453,1764109845174,-500.0,0.00040273,8]
[394909455,1764109845185,-629.59,0.00040273,8]
[394909457,1764109845194,-300.0,0.00040273,2]
[394909460,1764109845203,-7850.89,0.00040273,8]
[394909461,1764109845214,-5415.05,0.000403,30]
[394909464,1764109845224,-1003.57,0.0004032,120]
[394909466,1764109845234,-1000.0,0.00040324,7]
[394909467,1764109845244,-690.86,0.00040331,8]
[394909469,1764109845255,-845.17,0.00040331,8]
[394909471,1764109845264,-1347.19,0.00040331,8]
[394909473,1764109845274,-617.34,0.00040331,2]
[394909476,1764109845283,-500.0,0.00040331,8]
[394909478,1764109845293,-558.77316961,0.00040331,8]
[394909480,1764109845303,-1112.79,0.00040331,8]
[394909482,1764109845312,-500.0,0.00040331,8]
[394909484,1764109845321,-500.0,0.00040331,8]
[394909486,1764109845331,-891.76,0.00040331,8]
[394909488,1764109845340,-819.11947874,0.00040413,2]
[394909490,1764109845350,-599.25336676,0.00040444,2]
[394909492,1764109845360,-313.00904,0.00040496,15]
[394909494,1764109845370,-313.00904,0.00040496,15]
[394909496,1764109845379,-313.00904,0.00040496,15]
[394909498,1764109845389,-313.00904,0.00040496,15]
[394909500,1764109845399,-500.0,0.00040496,2]
[394909502,1764109845409,-151.0,0.00040497,120]
[394909504,1764109845418,-567.0,0.000405,16]
[394909506,1764109845428,-151.0,0.00040547,120]
[394909508,1764109845439,-151.0,0.00040547,120]
[394909510,1764109845449,-588.6,0.00040547,8]
[394909512,1764109845458,-1454.26,0.00040547,8]
[394909514,1764109845468,-1363.48,0.00040547,8]
[394909516,1764109845477,-763.45,0.00040547,2]
[394909518,1764109845487,-8713.23,0.00040547,8]
[394909520,1764109845496,-500.0,0.00040547,8]
[394909522,1764109845505,-629.59,0.00040547,8]
[394909524,1764109845514,-300.0,0.00040547,2]
[394909526,1764109845523,-7850.89,0.00040547,8]
[394909528,1764109845532,-2282.37,0.00040567,30]
[394909530,1764109845541,-2282.37,0.00040567,30]
[394909532,1764109845550,-2282.37,0.00040567,30]
[394909534,1764109845560,-2282.37,0.00040567,30]
[394909536,1764109845571,-1000.0,0.00040598,7]
[394909538,1764109845580,-301.52,0.000406,14]
[394909540,1764109845590,-690.86,0.00040605,8]
[394909542,1764109845599,-199.0,0.00040605,9]
[394909544,1764109845607,-845.17,0.00040605,8]
[394909546,1764109845617,-1347.19,0.00040605,8]
[394909549,1764109845626,-617.34,0.00040605,2]
[394909550,1764109845635,-500.0,0.00040605,8]
[394909552,1764109845644,-151.0,0.00040605,7]
[394909554,1764109845652,-1112.79,0.00040605,8]
[394909556,1764109845661,-500.0,0.00040605,8]
[394909558,1764109845671,-500.0,0.00040605,8]
[394909560,1764109845681,-891.76,0.00040605,8]
[394909563,1764109845691,-1239.66504217,0.00040624,15]
[394909564,1764109845700,-1444.0,0.00040658,120]
[394909567,1764109845709,-6042.0,0.000407,117]
[394909568,1764109845718,-604.0,0.00040711,30]
[394909571,1764109845728,-231.28369723,0.00040738,30]
[394909572,1764109845737,-150.0,0.00040767,30]
[394909573,1764109845746,-726.1414505,0.00040767,30]
[394909574,1764109845755,-150.0,0.00040767,30]